[Event "Early-Titled-Tuesday-Blitz-May-28-2024"]
[Site "Chess.com"]
[Date "2024.05.28"]
[Round "4"]
[White "chessfatbear"]
[Black "Polish_fighter3000"]
[Result "0-1"]
[WhiteElo "2824"]
[BlackElo "3108"]
[TimeControl "180+1"]
[EndTime "8:39:50 PDT"]
[Termination "Polish_fighter3000 won on time"]

1. e4 {[%clk 0:03:00.9]} 1... c5 {[%clk 0:02:58.2]} 2. Nf3 {[%clk 0:03:00.8]}
2... d6 {[%clk 0:02:58.8]} 3. Bb5+ {[%clk 0:03:00.3]} 3... Nd7 {[%clk
0:02:58.7]} 4. O-O {[%clk 0:02:59.4]} 4... a6 {[%clk 0:02:57.3]} 5. Bd3 {[%clk
0:02:57]} 5... e6 {[%clk 0:02:53.4]} 6. c3 {[%clk 0:02:56.7]} 6... Ngf6 {[%clk
0:02:49]} 7. Bc2 {[%clk 0:02:56.8]} 7... b5 {[%clk 0:02:48.4]} 8. d4 {[%clk
0:02:53.4]} 8... Bb7 {[%clk 0:02:48.8]} 9. Qe2 {[%clk 0:02:53.8]} 9... Be7
{[%clk 0:02:48.4]} 10. h3 {[%clk 0:02:47.9]} 10... Rc8 {[%clk 0:02:47.8]} 11. e5
{[%clk 0:02:43.5]} 11... Bxf3 {[%clk 0:02:40.4]} 12. Qxf3 {[%clk 0:02:43.4]}
12... dxe5 {[%clk 0:02:39.8]} 13. dxe5 {[%clk 0:02:41.6]} 13... Nxe5 {[%clk
0:02:38.5]} 14. Qb7 {[%clk 0:02:38.9]} 14... Rc6 {[%clk 0:02:23.3]} 15. Bf4
{[%clk 0:02:31.4]} 15... Rb6 {[%clk 0:02:15.3]} 16. Qa7 {[%clk 0:02:29]} 16...
Nc6 {[%clk 0:02:08.8]} 17. Qc7 {[%clk 0:02:28.2]} 17... Qxc7 {[%clk 0:02:06.6]}
18. Bxc7 {[%clk 0:02:29.1]} 18... Rb7 {[%clk 0:02:07.2]} 19. Bg3 {[%clk
0:02:23.4]} 19... O-O {[%clk 0:02:06.8]} 20. a4 {[%clk 0:02:16.8]} 20... Rd8
{[%clk 0:01:57.9]} 21. axb5 {[%clk 0:02:16.4]} 21... axb5 {[%clk 0:01:58.8]} 22.
Ra6 {[%clk 0:02:16]} 22... Nb8 {[%clk 0:01:58.8]} 23. Ra5 {[%clk 0:02:13.6]}
23... Nd5 {[%clk 0:01:25.2]} 24. Rd1 {[%clk 0:02:08]} 24... f5 {[%clk 0:01:19]}
25. Na3 {[%clk 0:01:50.6]} 25... b4 {[%clk 0:01:17.8]} 26. Nc4 {[%clk
0:01:47.9]} 26... bxc3 {[%clk 0:01:13]} 27. bxc3 {[%clk 0:01:48.8]} 27... Nd7
{[%clk 0:01:08.2]} 28. Re1 {[%clk 0:01:31.1]} 28... Nf8 {[%clk 0:01:03.8]} 29.
Ne5 {[%clk 0:01:14.2]} 29... Nxc3 {[%clk 0:00:56.2]} 30. Nc6 {[%clk 0:01:11.4]}
30... Rd2 {[%clk 0:00:56.7]} 31. Bxf5 {[%clk 0:00:33]} 31... Ne2+ {[%clk
0:00:53]} 32. Kf1 {[%clk 0:00:33.5]} 32... Nxg3+ {[%clk 0:00:35.9]} 33. fxg3
{[%clk 0:00:34.4]} 33... Bf6 {[%clk 0:00:23.9]} 34. Be4 {[%clk 0:00:27]} 34...
c4 {[%clk 0:00:21.1]} 35. Rc5 {[%clk 0:00:18.1]} 35... c3 {[%clk 0:00:20]} 36.
Rc1 {[%clk 0:00:15.7]} 36... Rbb2 {[%clk 0:00:16.4]} 37. Ne5 {[%clk 0:00:09.9]}
37... Rf2+ {[%clk 0:00:12.5]} 38. Kg1 {[%clk 0:00:09.4]} 38... Rfe2 {[%clk
0:00:13.1]} 0-1

[Event "Early-Titled-Tuesday-Blitz-May-28-2024"]
[Site "Chess.com"]
[Date "2024.05.28"]
[Round "4"]
[White "atbenina64"]
[Black "tandaleo"]
[Result "1-0"]
[WhiteElo "2798"]
[BlackElo "2567"]
[TimeControl "180+1"]
[EndTime "8:39:50 PDT"]
[Termination "atbenina64 won by resignation"]

1. c4 {[%clk 0:03:00.9]} 1... e6 {[%clk 0:02:59.4]} 2. Nc3 {[%clk 0:03:00.7]}
2... d5 {[%clk 0:02:59.9]} 3. d4 {[%clk 0:03:01.2]} 3... c6 {[%clk 0:02:58.5]}
4. e3 {[%clk 0:03:00.5]} 4... f5 {[%clk 0:02:58.5]} 5. Bd3 {[%clk 0:02:57.6]}
5... Nf6 {[%clk 0:02:57.7]} 6. Nge2 {[%clk 0:02:58.3]} 6... Bd6 {[%clk
0:02:56.3]} 7. f3 {[%clk 0:02:56.9]} 7... O-O {[%clk 0:02:56.4]} 8. O-O {[%clk
0:02:56.8]} 8... Nbd7 {[%clk 0:02:56.6]} 9. cxd5 {[%clk 0:02:55.6]} 9... cxd5
{[%clk 0:02:56.1]} 10. Bd2 {[%clk 0:02:47.5]} 10... a6 {[%clk 0:02:56.5]} 11.
Rc1 {[%clk 0:02:44.7]} 11... b5 {[%clk 0:02:54.1]} 12. Be1 {[%clk 0:02:42.6]}
12... Bb7 {[%clk 0:02:50.6]} 13. Bg3 {[%clk 0:02:37.6]} 13... Qe7 {[%clk
0:02:50.8]} 14. Qe1 {[%clk 0:02:21.2]} 14... Rac8 {[%clk 0:02:38.6]} 15. Bb1
{[%clk 0:02:09.4]} 15... g6 {[%clk 0:02:16.5]} 16. Bxd6 {[%clk 0:01:52.2]} 16...
Qxd6 {[%clk 0:02:17.4]} 17. Nf4 {[%clk 0:01:52.8]} 17... Nb6 {[%clk 0:02:07.8]}
18. Nd3 {[%clk 0:01:47.4]} 18... Nfd7 {[%clk 0:02:01.3]} 19. b4 {[%clk
0:01:43.9]} 19... Nc4 {[%clk 0:01:57]} 20. f4 {[%clk 0:01:27.7]} 20... Bc6
{[%clk 0:01:42.6]} 21. Nc5 {[%clk 0:01:25.8]} 21... Nxc5 {[%clk 0:01:42.7]} 22.
dxc5 {[%clk 0:01:21.5]} 22... Qe7 {[%clk 0:01:42.6]} 23. Rd1 {[%clk 0:01:20.6]}
23... a5 {[%clk 0:01:39.6]} 24. Ne2 {[%clk 0:00:13.8]} 24... Nxe3 {[%clk
0:01:15.6]} 25. a3 {[%clk 0:00:14.2]} 25... axb4 {[%clk 0:01:02.3]} 26. axb4
{[%clk 0:00:15.1]} 26... Nxd1 {[%clk 0:00:53.3]} 27. Qxd1 {[%clk 0:00:15.5]}
27... e5 {[%clk 0:00:53.7]} 28. fxe5 {[%clk 0:00:16]} 28... Qxe5 {[%clk
0:00:54.1]} 29. Nd4 {[%clk 0:00:16.9]} 29... Rfe8 {[%clk 0:00:54.6]} 30. Ba2
{[%clk 0:00:12.1]} 30... Kg7 {[%clk 0:00:50]} 31. Bb3 {[%clk 0:00:09.7]} 31...
Qe3+ {[%clk 0:00:36.4]} 32. Kh1 {[%clk 0:00:09.8]} 32... Qc3 {[%clk 0:00:36.9]}
33. h3 {[%clk 0:00:06.5]} 33... Qxb4 {[%clk 0:00:23.3]} 34. Qa1 {[%clk
0:00:05.7]} 34... Kh6 {[%clk 0:00:17]} 35. Nxf5+ {[%clk 0:00:05.4]} 35... Kg5
{[%clk 0:00:11.1]} 36. h4+ {[%clk 0:00:05.1]} 36... Kg4 {[%clk 0:00:03.5]} 37.
Qd1+ {[%clk 0:00:04.7]} 1-0

[Event "Early-Titled-Tuesday-Blitz-May-28-2024"]
[Site "Chess.com"]
[Date "2024.05.28"]
[Round "4"]
[White "Abund"]
[Black "subham777"]
[Result "1-0"]
[WhiteElo "2793"]
[BlackElo "2564"]
[TimeControl "180+1"]
[EndTime "8:39:50 PDT"]
[Termination "Abund won on time"]

1. e4 {[%clk 0:03:00.9]} 1... e6 {[%clk 0:02:58.2]} 2. d4 {[%clk 0:03:00.7]}
2... d5 {[%clk 0:02:57.9]} 3. Nd2 {[%clk 0:03:01.1]} 3... c5 {[%clk 0:02:57.7]}
4. Ngf3 {[%clk 0:03:00.9]} 4... cxd4 {[%clk 0:02:57.7]} 5. Nxd4 {[%clk
0:03:01.7]} 5... Nc6 {[%clk 0:02:57.3]} 6. Bb5 {[%clk 0:02:57.3]} 6... Bd7
{[%clk 0:02:55.3]} 7. Nxc6 {[%clk 0:02:57.7]} 7... bxc6 {[%clk 0:02:53.3]} 8.
Bd3 {[%clk 0:02:57.8]} 8... Bd6 {[%clk 0:02:53.7]} 9. Qe2 {[%clk 0:02:57.8]}
9... Ne7 {[%clk 0:02:48.9]} 10. e5 {[%clk 0:02:48.1]} 10... Bc7 {[%clk
0:02:43.4]} 11. Nf3 {[%clk 0:02:47.1]} 11... Ng6 {[%clk 0:02:40.3]} 12. O-O
{[%clk 0:02:36]} 12... O-O {[%clk 0:02:32.2]} 13. Re1 {[%clk 0:02:29.6]} 13...
c5 {[%clk 0:02:27.4]} 14. c4 {[%clk 0:02:27.4]} 14... Bc6 {[%clk 0:02:27.3]} 15.
cxd5 {[%clk 0:02:10.6]} 15... Bxd5 {[%clk 0:02:16.8]} 16. Ng5 {[%clk 0:01:55.5]}
16... h6 {[%clk 0:01:59.3]} 17. Nxf7 {[%clk 0:01:39.4]} 17... Rxf7 {[%clk
0:01:35.8]} 18. Bxg6 {[%clk 0:01:37.7]} 18... Rf8 {[%clk 0:01:32.5]} 19. Bc2
{[%clk 0:01:17.6]} 19... Qh4 {[%clk 0:01:18.1]} 20. f4 {[%clk 0:01:05.9]} 20...
Bb6 {[%clk 0:00:59.6]} 21. Be3 {[%clk 0:01:03.9]} 21... c4 {[%clk 0:00:29.3]}
22. g3 {[%clk 0:00:58.7]} 22... Qh3 {[%clk 0:00:19.7]} 23. Bxb6 {[%clk
0:00:58.6]} 23... axb6 {[%clk 0:00:19.2]} 24. Be4 {[%clk 0:00:58.8]} 24... Rad8
{[%clk 0:00:12.1]} 25. Rad1 {[%clk 0:00:43.9]} 25... b5 {[%clk 0:00:06.7]} 26.
Bxd5 {[%clk 0:00:42.6]} 26... exd5 {[%clk 0:00:06.9]} 27. e6 {[%clk 0:00:42.8]}
27... Rfe8 {[%clk 0:00:06.1]} 28. Qe5 {[%clk 0:00:34.4]} 28... b4 {[%clk
0:00:01.8]} 29. Rxd5 {[%clk 0:00:33.7]} 29... Ra8 {[%clk 0:00:01.8]} 30. e7
{[%clk 0:00:32.3]} 30... Kh8 {[%clk 0:00:02.2]} 31. f5 {[%clk 0:00:22.7]} 31...
Qg4 {[%clk 0:00:02.3]} 32. f6 {[%clk 0:00:22]} 32... gxf6 {[%clk 0:00:03]} 33.
Qxf6+ {[%clk 0:00:20.6]} 33... Qg7 {[%clk 0:00:03.7]} 34. Qe6 {[%clk 0:00:18.5]}
34... c3 {[%clk 0:00:01]} 35. Rh5 {[%clk 0:00:16.4]} 35... Kh7 {[%clk 0:00:01]}
36. Rf5 {[%clk 0:00:12.7]} 36... Qg6 {[%clk 0:00:01.9]} 37. Rf7+ {[%clk
0:00:12.8]} 37... Qxf7 {[%clk 0:00:01.2]} 38. Qxf7+ {[%clk 0:00:13]} 38... Kh8
{[%clk 0:00:02.1]} 39. Re6 {[%clk 0:00:13]} 1-0

[Event "Early-Titled-Tuesday-Blitz-May-28-2024"]
[Site "Chess.com"]
[Date "2024.05.28"]
[Round "4"]
[White "ImportedItalianMaple"]
[Black "LuisFSiles"]
[Result "0-1"]
[WhiteElo "2531"]
[BlackElo "2387"]
[TimeControl "180+1"]
[EndTime "8:39:50 PDT"]
[Termination "LuisFSiles won by resignation"]

1. e4 {[%clk 0:02:58.5]} 1... c5 {[%clk 0:02:59.1]} 2. Nf3 {[%clk 0:02:58.9]}
2... Nc6 {[%clk 0:02:59]} 3. Bb5 {[%clk 0:02:59.5]} 3... g6 {[%clk 0:02:58.6]}
4. O-O {[%clk 0:02:59.9]} 4... Bg7 {[%clk 0:02:58.4]} 5. c3 {[%clk 0:03:00.4]}
5... Nf6 {[%clk 0:02:57]} 6. Re1 {[%clk 0:03:00.9]} 6... O-O {[%clk 0:02:56.4]}
7. d4 {[%clk 0:03:01.5]} 7... d5 {[%clk 0:02:56.3]} 8. e5 {[%clk 0:03:02.1]}
8... Ne4 {[%clk 0:02:56.5]} 9. Bxc6 {[%clk 0:03:02.8]} 9... bxc6 {[%clk
0:02:56.2]} 10. Be3 {[%clk 0:03:03.7]} 10... Qb6 {[%clk 0:02:54.1]} 11. Qc1
{[%clk 0:03:04.1]} 11... c4 {[%clk 0:02:51.9]} 12. Nfd2 {[%clk 0:03:00.5]} 12...
Nxd2 {[%clk 0:02:49.3]} 13. Nxd2 {[%clk 0:03:01.2]} 13... Bf5 {[%clk 0:02:49.4]}
14. b3 {[%clk 0:02:59]} 14... Bd3 {[%clk 0:02:49.6]} 15. Qd1 {[%clk 0:02:45.3]}
15... Qa5 {[%clk 0:02:34]} 16. b4 {[%clk 0:02:35.8]} 16... Qa3 {[%clk
0:02:20.4]} 17. Nb3 {[%clk 0:02:34]} 17... Qb2 {[%clk 0:01:41.4]} 18. Qd2 {[%clk
0:02:24.6]} 18... Qxd2 {[%clk 0:01:34.8]} 19. Nxd2 {[%clk 0:02:25.3]} 19... a5
{[%clk 0:01:32.2]} 20. a3 {[%clk 0:02:25.8]} 20... Ra6 {[%clk 0:01:26.9]} 21.
Bg5 {[%clk 0:02:14.7]} 21... f6 {[%clk 0:01:25.1]} 22. exf6 {[%clk 0:02:14.7]}
22... exf6 {[%clk 0:01:19.8]} 23. Bf4 {[%clk 0:02:15.1]} 23... axb4 {[%clk
0:01:15]} 24. axb4 {[%clk 0:02:10.4]} 24... Rfa8 {[%clk 0:01:13.7]} 25. Rxa6
{[%clk 0:02:10.4]} 25... Rxa6 {[%clk 0:01:13]} 26. Bd6 {[%clk 0:01:27.9]} 26...
Bf8 {[%clk 0:00:59.8]} 27. Bxf8 {[%clk 0:01:22.3]} 27... Kxf8 {[%clk 0:00:59.5]}
28. h4 {[%clk 0:01:12.9]} 28... Kf7 {[%clk 0:00:57.9]} 29. Nf3 {[%clk
0:01:06.5]} 29... Ra2 {[%clk 0:00:36.6]} 30. Rc1 {[%clk 0:01:03.2]} 30... Ke6
{[%clk 0:00:16.2]} 31. g4 {[%clk 0:00:52.9]} 31... h6 {[%clk 0:00:13.8]} 32. Ne1
{[%clk 0:00:48.9]} 32... g5 {[%clk 0:00:11.7]} 33. hxg5 {[%clk 0:00:42.5]} 33...
hxg5 {[%clk 0:00:10.8]} 34. Kg2 {[%clk 0:00:41.9]} 34... f5 {[%clk 0:00:10.7]}
35. gxf5+ {[%clk 0:00:31.9]} 35... Kxf5 {[%clk 0:00:10.4]} 36. Kf3 {[%clk
0:00:30.9]} 36... Be4+ {[%clk 0:00:10.2]} 37. Ke3 {[%clk 0:00:30.3]} 37... g4
{[%clk 0:00:10.4]} 38. f3 {[%clk 0:00:23]} 38... gxf3 {[%clk 0:00:09.2]} 39.
Nxf3 {[%clk 0:00:23.9]} 39... Bxf3 {[%clk 0:00:09.3]} 40. Kxf3 {[%clk
0:00:24.8]} 40... Rd2 {[%clk 0:00:07.6]} 41. Ke3 {[%clk 0:00:22.3]} 41... Rd3+
{[%clk 0:00:07.8]} 42. Ke2 {[%clk 0:00:23]} 42... Ke4 {[%clk 0:00:08.2]} 43. Rc2
{[%clk 0:00:18.5]} 43... Rh3 {[%clk 0:00:08.1]} 44. Rc1 {[%clk 0:00:18.9]} 44...
Rh2+ {[%clk 0:00:08.2]} 45. Kd1 {[%clk 0:00:18.6]} 45... Rh1+ {[%clk 0:00:08.8]}
46. Kc2 {[%clk 0:00:19.5]} 46... Rxc1+ {[%clk 0:00:08.9]} 47. Kxc1 {[%clk
0:00:20.3]} 47... Kd3 {[%clk 0:00:09.3]} 48. Kb2 {[%clk 0:00:20.9]} 48... Kd2
{[%clk 0:00:09.8]} 0-1

[Event "Early-Titled-Tuesday-Blitz-May-28-2024"]
[Site "Chess.com"]
[Date "2024.05.28"]
[Round "4"]
[White "Redbandit87"]
[Black "TatjanaVasilevich"]
[Result "1-0"]
[WhiteElo "2436"]
[BlackElo "2586"]
[TimeControl "180+1"]
[EndTime "8:39:52 PDT"]
[Termination "Redbandit87 won by checkmate"]

1. d4 {[%clk 0:03:00.9]} 1... Nf6 {[%clk 0:02:59.5]} 2. Bg5 {[%clk 0:02:55.9]}
2... e6 {[%clk 0:02:59.2]} 3. e4 {[%clk 0:02:55.6]} 3... h6 {[%clk 0:02:59.2]}
4. Bxf6 {[%clk 0:02:55]} 4... Qxf6 {[%clk 0:03:00.1]} 5. c3 {[%clk 0:02:53.5]}
5... d6 {[%clk 0:02:57.7]} 6. Bd3 {[%clk 0:02:53.7]} 6... e5 {[%clk 0:02:57.5]}
7. Ne2 {[%clk 0:02:51.4]} 7... Nc6 {[%clk 0:02:55.8]} 8. O-O {[%clk 0:02:47]}
8... Bd7 {[%clk 0:02:45.3]} 9. d5 {[%clk 0:02:32]} 9... Ne7 {[%clk 0:02:44.2]}
10. Nd2 {[%clk 0:02:31.9]} 10... g5 {[%clk 0:02:43.6]} 11. c4 {[%clk 0:02:30.2]}
11... Ng6 {[%clk 0:02:39.7]} 12. b4 {[%clk 0:02:19.1]} 12... h5 {[%clk
0:02:38.4]} 13. Ng3 {[%clk 0:02:13.3]} 13... Nf4 {[%clk 0:02:35.8]} 14. Bc2
{[%clk 0:02:12.6]} 14... g4 {[%clk 0:02:22.1]} 15. Nf5 {[%clk 0:02:12.5]} 15...
Bh6 {[%clk 0:02:22.1]} 16. c5 {[%clk 0:02:02.2]} 16... Bxf5 {[%clk 0:01:49.1]}
17. exf5 {[%clk 0:02:01.9]} 17... Qe7 {[%clk 0:01:47.3]} 18. Ne4 {[%clk
0:01:57]} 18... f6 {[%clk 0:01:47.2]} 19. Ba4+ {[%clk 0:01:53.8]} 19... Kf7
{[%clk 0:01:46.4]} 20. g3 {[%clk 0:01:44.2]} 20... Nh3+ {[%clk 0:01:46.1]} 21.
Kg2 {[%clk 0:01:44.8]} 21... Ng5 {[%clk 0:01:33.7]} 22. Nxg5+ {[%clk 0:01:13.7]}
22... Bxg5 {[%clk 0:01:34.6]} 23. f3 {[%clk 0:01:13.4]} 23... gxf3+ {[%clk
0:01:18.7]} 24. Qxf3 {[%clk 0:01:08.3]} 24... dxc5 {[%clk 0:01:17.9]} 25. d6
{[%clk 0:00:55.2]} 25... cxd6 {[%clk 0:01:16.4]} 26. Qd5+ {[%clk 0:00:55.5]}
26... Kg7 {[%clk 0:01:15.2]} 27. Rad1 {[%clk 0:00:42.6]} 27... Rhd8 {[%clk
0:01:13.7]} 28. Bb3 {[%clk 0:00:41.3]} 28... b5 {[%clk 0:01:06.9]} 29. h4 {[%clk
0:00:31.6]} 29... Bh6 {[%clk 0:00:59.9]} 30. Qf3 {[%clk 0:00:30]} 30... c4
{[%clk 0:01:00]} 31. Bc2 {[%clk 0:00:29.7]} 31... d5 {[%clk 0:00:54.7]} 32. Qxh5
{[%clk 0:00:21.5]} 32... Qf7 {[%clk 0:00:52.6]} 33. Qf3 {[%clk 0:00:16.5]} 33...
d4 {[%clk 0:00:51.6]} 34. Be4 {[%clk 0:00:16.3]} 34... Rac8 {[%clk 0:00:51.2]}
35. g4 {[%clk 0:00:16.4]} 35... Bf4 {[%clk 0:00:50.2]} 36. Kf2 {[%clk
0:00:10.5]} 36... Rh8 {[%clk 0:00:49.7]} 37. Rh1 {[%clk 0:00:10.2]} 37... d3
{[%clk 0:00:49.6]} 38. Rdg1 {[%clk 0:00:07.9]} 38... Qd7 {[%clk 0:00:48.1]} 39.
g5 {[%clk 0:00:08]} 39... Qd4+ {[%clk 0:00:48.1]} 40. Kf1 {[%clk 0:00:08.4]}
40... Qa1+ {[%clk 0:00:47.4]} 41. Kg2 {[%clk 0:00:08.5]} 41... Qxa2+ {[%clk
0:00:47.3]} 42. Kf1 {[%clk 0:00:09.1]} 42... Qb1+ {[%clk 0:00:47]} 43. Kg2
{[%clk 0:00:09.3]} 43... Qc2+ {[%clk 0:00:47.2]} 44. Kf1 {[%clk 0:00:09.8]}
44... Qc1+ {[%clk 0:00:45.9]} 45. Kg2 {[%clk 0:00:10.3]} 45... Qd2+ {[%clk
0:00:44.1]} 46. Kf1 {[%clk 0:00:10.6]} 46... fxg5 {[%clk 0:00:44.2]} 47. hxg5
{[%clk 0:00:09.6]} 47... Bxg5 {[%clk 0:00:41.5]} 48. f6+ {[%clk 0:00:06.6]}
48... Kf7 {[%clk 0:00:41]} 49. Bd5+ {[%clk 0:00:06.1]} 49... Ke8 {[%clk
0:00:38.8]} 50. Rxh8+ {[%clk 0:00:06.1]} 50... Kd7 {[%clk 0:00:39.1]} 51. Qf5+
{[%clk 0:00:05]} 51... Kc7 {[%clk 0:00:39.5]} 52. Qxc8+ {[%clk 0:00:05.2]} 52...
Kd6 {[%clk 0:00:38.5]} 53. Qc6# {[%clk 0:00:05.2]} 1-0

[Event "Early-Titled-Tuesday-Blitz-May-28-2024"]
[Site "Chess.com"]
[Date "2024.05.28"]
[Round "4"]
[White "Daaksboy"]
[Black "ChempionBg"]
[Result "1-0"]
[WhiteElo "2464"]
[BlackElo "2257"]
[TimeControl "180+1"]
[EndTime "8:39:52 PDT"]
[Termination "Daaksboy won on time"]

1. d4 {[%clk 0:03:00.9]} 1... Nf6 {[%clk 0:02:58.8]} 2. c4 {[%clk 0:03:00.6]}
2... g6 {[%clk 0:02:59]} 3. Nc3 {[%clk 0:03:00.1]} 3... Bg7 {[%clk 0:02:59.7]}
4. e4 {[%clk 0:03:00.2]} 4... d6 {[%clk 0:03:00]} 5. Be2 {[%clk 0:03:00.4]} 5...
O-O {[%clk 0:02:58.5]} 6. h4 {[%clk 0:03:00.3]} 6... h5 {[%clk 0:02:55.7]} 7.
Nf3 {[%clk 0:02:59.8]} 7... e5 {[%clk 0:02:53.1]} 8. d5 {[%clk 0:03:00.1]} 8...
a5 {[%clk 0:02:51.3]} 9. Ng5 {[%clk 0:02:58.8]} 9... Na6 {[%clk 0:02:51.2]} 10.
Be3 {[%clk 0:02:55.9]} 10... Nc5 {[%clk 0:02:49.5]} 11. Qc2 {[%clk 0:02:55.8]}
11... Bd7 {[%clk 0:02:43.1]} 12. f3 {[%clk 0:02:47.2]} 12... a4 {[%clk
0:02:40.2]} 13. O-O-O {[%clk 0:02:44.5]} 13... Qb8 {[%clk 0:02:30.3]} 14. Rhg1
{[%clk 0:02:33.6]} 14... c6 {[%clk 0:02:18.6]} 15. dxc6 {[%clk 0:02:30.3]} 15...
bxc6 {[%clk 0:02:17.3]} 16. Bxc5 {[%clk 0:02:29.5]} 16... dxc5 {[%clk
0:02:04.4]} 17. g4 {[%clk 0:02:29.6]} 17... hxg4 {[%clk 0:01:22]} 18. fxg4
{[%clk 0:02:22.7]} 18... Rd8 {[%clk 0:01:21.2]} 19. h5 {[%clk 0:02:20.4]} 19...
Bh6 {[%clk 0:01:08.5]} 20. Qd2 {[%clk 0:01:48.2]} 20... Nh7 {[%clk 0:01:04.5]}
21. Kb1 {[%clk 0:01:43]} 21... Bxg5 {[%clk 0:00:58.6]} 22. Qc2 {[%clk
0:01:36.8]} 22... a3 {[%clk 0:00:39]} 23. b3 {[%clk 0:01:35]} 23... Be6 {[%clk
0:00:37]} 24. hxg6 {[%clk 0:01:31]} 24... fxg6 {[%clk 0:00:34.6]} 25. Bd3 {[%clk
0:01:29.8]} 25... Ra7 {[%clk 0:00:31]} 26. Rh1 {[%clk 0:01:24.6]} 26... Rad7
{[%clk 0:00:28.1]} 27. Nd5 {[%clk 0:01:21.1]} 27... Rf7 {[%clk 0:00:10.5]} 28.
Rh2 {[%clk 0:01:09.1]} 28... Rdf8 {[%clk 0:00:08.9]} 29. Rg1 {[%clk 0:00:42.7]}
29... Qe8 {[%clk 0:00:06.3]} 30. Qe2 {[%clk 0:00:34.2]} 30... cxd5 {[%clk
0:00:04.5]} 31. exd5 {[%clk 0:00:34]} 31... Bd7 {[%clk 0:00:03.7]} 32. Bxg6
{[%clk 0:00:32.9]} 32... Qe7 {[%clk 0:00:03.7]} 33. Bxf7+ {[%clk 0:00:30.5]}
33... Rxf7 {[%clk 0:00:03.3]} 34. Rgh1 {[%clk 0:00:30.5]} 34... Rg7 {[%clk
0:00:02.5]} 35. Qe4 {[%clk 0:00:29.7]} 35... Nf6 {[%clk 0:00:01.6]} 36. Rh8+
{[%clk 0:00:27.6]} 36... Kf7 {[%clk 0:00:01.9]} 37. Qg2 {[%clk 0:00:24.8]} 37...
Bxg4 {[%clk 0:00:02]} 38. Rf1 {[%clk 0:00:20]} 38... e4 {[%clk 0:00:01.4]} 39.
Qh2 {[%clk 0:00:18.5]} 39... Be3 {[%clk 0:00:00.3]} 40. d6 {[%clk 0:00:18.4]}
1-0

[Event "Early-Titled-Tuesday-Blitz-May-28-2024"]
[Site "Chess.com"]
[Date "2024.05.28"]
[Round "4"]
[White "MVM2008"]
[Black "Chernov_Alexander_A"]
[Result "1-0"]
[WhiteElo "2490"]
[BlackElo "2300"]
[TimeControl "180+1"]
[EndTime "8:39:53 PDT"]
[Termination "MVM2008 won on time"]

1. e4 {[%clk 0:03:00.9]} 1... d6 {[%clk 0:02:58.7]} 2. d4 {[%clk 0:03:01.1]}
2... Nf6 {[%clk 0:02:58.5]} 3. Nc3 {[%clk 0:03:01.6]} 3... Nbd7 {[%clk
0:02:56.1]} 4. h4 {[%clk 0:02:43.3]} 4... e5 {[%clk 0:02:54.7]} 5. d5 {[%clk
0:02:43.2]} 5... c6 {[%clk 0:02:53.8]} 6. dxc6 {[%clk 0:02:35]} 6... bxc6 {[%clk
0:02:53.2]} 7. Bc4 {[%clk 0:02:34.1]} 7... Nb6 {[%clk 0:02:46.3]} 8. Be2 {[%clk
0:02:31.1]} 8... d5 {[%clk 0:02:41.2]} 9. exd5 {[%clk 0:02:31.2]} 9... cxd5
{[%clk 0:02:40.6]} 10. Bg5 {[%clk 0:02:31.8]} 10... Be7 {[%clk 0:02:26.2]} 11.
Bb5+ {[%clk 0:02:22.9]} 11... Bd7 {[%clk 0:02:17.5]} 12. a4 {[%clk 0:02:16.1]}
12... d4 {[%clk 0:02:11.7]} 13. Bxf6 {[%clk 0:01:54.2]} 13... gxf6 {[%clk
0:01:49.8]} 14. Ne4 {[%clk 0:01:46.3]} 14... Bxb5 {[%clk 0:01:48.9]} 15. axb5
{[%clk 0:01:43.8]} 15... Qd5 {[%clk 0:01:47.1]} 16. Qe2 {[%clk 0:01:19.8]} 16...
f5 {[%clk 0:01:46.5]} 17. Ng3 {[%clk 0:01:14]} 17... e4 {[%clk 0:01:45.9]} 18.
Nh3 {[%clk 0:01:12.7]} 18... Bb4+ {[%clk 0:01:28.2]} 19. Kf1 {[%clk 0:01:07.1]}
19... Bd6 {[%clk 0:01:27.7]} 20. Nh5 {[%clk 0:00:54.6]} 20... Be5 {[%clk
0:00:57.4]} 21. Rg1 {[%clk 0:00:28.1]} 21... Rg8 {[%clk 0:00:43.1]} 22. Ng5
{[%clk 0:00:20.4]} 22... h6 {[%clk 0:00:35.7]} 23. Nh7 {[%clk 0:00:17.3]} 23...
Rg6 {[%clk 0:00:35.6]} 24. g4 {[%clk 0:00:15.2]} 24... f4 {[%clk 0:00:21.9]} 25.
g5 {[%clk 0:00:12.9]} 25... Qc4 {[%clk 0:00:19.8]} 26. Qxc4 {[%clk 0:00:08.3]}
26... Nxc4 {[%clk 0:00:19.5]} 27. gxh6 {[%clk 0:00:08.2]} 27... Ke7 {[%clk
0:00:13]} 28. Ng5 {[%clk 0:00:03.6]} 28... e3 {[%clk 0:00:04.6]} 29. Re1 {[%clk
0:00:03.4]} 29... Nd2+ {[%clk 0:00:03.4]} 30. Ke2 {[%clk 0:00:03.8]} 30... Rxh6
{[%clk 0:00:03]} 31. Nf3 {[%clk 0:00:03.1]} 31... Bf6 {[%clk 0:00:01.7]} 32.
Nxd2 {[%clk 0:00:02.7]} 32... Rxh5 {[%clk 0:00:01.3]} 33. Ne4 {[%clk 0:00:02.3]}
33... Re5 {[%clk 0:00:01.2]} 34. Ng5 {[%clk 0:00:02.4]} 34... Bxg5 {[%clk
0:00:00.7]} 35. hxg5 {[%clk 0:00:03.3]} 35... Rg8 {[%clk 0:00:00.3]} 36. f3
{[%clk 0:00:03.7]} 1-0